[Event "Titled Tuesday Blitz August 3 2021"]
[White "Vokhidov, Shamsiddin"]
[Black "Maksimovic, Bojan"]
[WhiteFideId "14204223"]
[BlackFideId "14408120"]
[WhiteElo "2572"]
[BlackElo "2439"]
[Result "1-0"]
[Round "06"]
[TimeControl "180+1"]
[Date "2021.08.03"]
[WhiteClock "0:01:47"]
[BlackClock "0:00:01"]

1. e4 {[%clk 0:03:00]}  c5 {[%clk 0:03:00]} 2. Nc3 {[%clk 0:03:01]}  Nc6 {[%clk 0:02:59]} 3. Bb5 {[%clk 0:03:01]}  Nd4 {[%clk 0:03:00]} 4. Nf3 {[%clk 0:03:01]}  Nxb5 {[%clk 0:03:00]} 5. Nxb5 {[%clk 0:03:02]}  d6 {[%clk 0:03:00]} 6. d4 {[%clk 0:03:02]}  Nf6 {[%clk 0:03:00]} 7. Nc3 {[%clk 0:02:59]}  cxd4 {[%clk 0:02:58]} 8. Qxd4 {[%clk 0:03:00]}  e5 {[%clk 0:02:59]} 9. Qd3 {[%clk 0:02:59]}  h6 {[%clk 0:02:59]} 10. O-O {[%clk 0:02:58]}  Be6 {[%clk 0:02:59]} 11. a4 {[%clk 0:02:58]}  Qc7 {[%clk 0:02:49]} 12. Rd1 {[%clk 0:02:56]}  a6 {[%clk 0:02:47]} 13. Nd2 {[%clk 0:02:56]}  Rc8 {[%clk 0:02:47]} 14. Nf1 {[%clk 0:02:55]}  Qc4 {[%clk 0:02:46]} 15. Qxc4 {[%clk 0:02:49]}  Rxc4 {[%clk 0:02:45]} 16. Ne3 {[%clk 0:02:49]}  Rxc3 {[%clk 0:02:43]} 17. bxc3 {[%clk 0:02:50]}  Nxe4 {[%clk 0:02:44]} 18. c4 {[%clk 0:02:48]}  Kd7 {[%clk 0:02:33]} 19. f3 {[%clk 0:02:47]}  Nc5 {[%clk 0:02:31]} 20. Ba3 {[%clk 0:02:47]}  Kc6 {[%clk 0:01:43]} 21. Bxc5 {[%clk 0:02:45]}  Kxc5 {[%clk 0:01:40]} 22. Rab1 {[%clk 0:02:45]}  Be7 {[%clk 0:00:14]} 23. Rxb7 {[%clk 0:02:38]}  Bg5 {[%clk 0:00:14]} 24. Kf2 {[%clk 0:02:33]}  Rc8 {[%clk 0:00:12]} 25. Nd5 {[%clk 0:02:20]}  Rc6 {[%clk 0:00:12]} 26. Nb4 {[%clk 0:02:17]}  Rb6 {[%clk 0:00:08]} 27. Rxb6 {[%clk 0:01:59]}  Kxb6 {[%clk 0:00:09]} 28. Rxd6+ {[%clk 0:01:54]}  Kc5 {[%clk 0:00:09]} 29. Rxe6 {[%clk 0:01:55]}  fxe6 {[%clk 0:00:10]} 30. Nxa6+ {[%clk 0:01:55]}  Kc6 {[%clk 0:00:02]} 31. Nb4+ {[%clk 0:01:52]}  Kc5 {[%clk 0:00:02]} 32. Nd3+ {[%clk 0:01:52]}  Kd4 {[%clk 0:00:03]} 33. c5 {[%clk 0:01:51]}  e4 {[%clk 0:00:01]} 34. fxe4 {[%clk 0:01:51]}  Kxe4 {[%clk 0:00:02]} 35. a5 {[%clk 0:01:48]}  Be3+ {[%clk 0:00:01]} 36. Ke2 {[%clk 0:01:47]}  Bd4 {[%clk 0:00:01]} 37. a6 {[%clk 0:01:47]} 1-0


[Site "https://www.chess.com"]

[Event "Titled Tuesday Blitz August 3 2021"]
[White "Wei, Yi"]
[Black "Shahade, Gregory"]
[WhiteFideId "8603405"]
[BlackFideId "2009064"]
[WhiteElo "2686"]
[BlackElo "2724"]
[Result "0-1"]
[Round "06"]
[TimeControl "180+1"]
[Date "2021.08.03"]
[WhiteClock "0:00:01"]
[BlackClock "0:00:08"]

1. d4 {[%clk 0:03:00]}  Nf6 {[%clk 0:02:59]} 2. c4 {[%clk 0:03:01]}  g6 {[%clk 0:02:59]} 3. Nc3 {[%clk 0:03:00]}  d5 {[%clk 0:02:59]} 4. cxd5 {[%clk 0:02:59]}  Nxd5 {[%clk 0:03:00]} 5. e4 {[%clk 0:02:59]}  Nxc3 {[%clk 0:03:01]} 6. bxc3 {[%clk 0:03:00]}  Bg7 {[%clk 0:03:01]} 7. Nf3 {[%clk 0:03:01]}  c5 {[%clk 0:02:59]} 8. Be3 {[%clk 0:03:01]}  Qa5 {[%clk 0:02:53]} 9. Qd2 {[%clk 0:03:01]}  O-O {[%clk 0:02:52]} 10. Rc1 {[%clk 0:03:01]}  Rd8 {[%clk 0:02:50]} 11. h4 {[%clk 0:02:56]}  cxd4 {[%clk 0:02:40]} 12. cxd4 {[%clk 0:02:56]}  Qxd2+ {[%clk 0:02:40]} 13. Bxd2 {[%clk 0:02:52]}  Bg4 {[%clk 0:02:33]} 14. d5 {[%clk 0:02:51]}  Bxf3 {[%clk 0:02:11]} 15. gxf3 {[%clk 0:02:52]}  Nd7 {[%clk 0:02:12]} 16. Rc7 {[%clk 0:02:39]}  Rac8 {[%clk 0:01:49]} 17. Rxb7 {[%clk 0:01:59]}  Rb8 {[%clk 0:01:46]} 18. Rb5 {[%clk 0:01:22]}  a6 {[%clk 0:01:40]} 19. Rxb8 {[%clk 0:01:14]}  Rxb8 {[%clk 0:01:41]} 20. f4 {[%clk 0:00:36]}  Rb1+ {[%clk 0:01:15]} 21. Ke2 {[%clk 0:00:36]}  Bd4 {[%clk 0:01:15]} 22. Rh3 {[%clk 0:00:31]}  Nc5 {[%clk 0:01:02]} 23. Be3 {[%clk 0:00:31]}  Rb2+ {[%clk 0:00:59]} 24. Kf3 {[%clk 0:00:30]}  Bxe3 {[%clk 0:00:55]} 25. fxe3 {[%clk 0:00:22]}  Rxa2 {[%clk 0:00:54]} 26. h5 {[%clk 0:00:21]}  a5 {[%clk 0:00:53]} 27. hxg6 {[%clk 0:00:21]}  hxg6 {[%clk 0:00:53]} 28. e5 {[%clk 0:00:20]}  a4 {[%clk 0:00:51]} 29. f5 {[%clk 0:00:11]}  gxf5 {[%clk 0:00:47]} 30. Rg3+ {[%clk 0:00:04]}  Kf8 {[%clk 0:00:46]} 31. Rg5 {[%clk 0:00:04]}  e6 {[%clk 0:00:31]} 32. dxe6 {[%clk 0:00:04]}  fxe6 {[%clk 0:00:31]} 33. Rg6 {[%clk 0:00:03]}  Ne4 {[%clk 0:00:26]} 34. Be2 {[%clk 0:00:03]}  Kf7 {[%clk 0:00:23]} 35. Rh6 {[%clk 0:00:02]}  a3 {[%clk 0:00:22]} 36. Rh7+ {[%clk 0:00:03]}  Kg6 {[%clk 0:00:23]} 37. Ra7 {[%clk 0:00:03]}  Ra1 {[%clk 0:00:20]} 38. Bd3 {[%clk 0:00:03]}  Nc5 {[%clk 0:00:12]} 39. Bc4 {[%clk 0:00:03]}  Rc1 {[%clk 0:00:11]} 40. Ba2 {[%clk 0:00:03]}  Rc3 {[%clk 0:00:10]} 41. Ra5 {[%clk 0:00:03]}  Kf7 {[%clk 0:00:09]} 42. Ra7+ {[%clk 0:00:02]}  Kg6 {[%clk 0:00:10]} 43. Ra5 {[%clk 0:00:02]}  Ne4 {[%clk 0:00:07]} 44. Ra6 {[%clk 0:00:02]}  Rc2 {[%clk 0:00:08]} 45. Rxe6+ {[%clk 0:00:01]}  Kg5 {[%clk 0:00:08]} 0-1


[Site "https://www.chess.com"]

[Event "Titled Tuesday Blitz August 3 2021"]
[White "Zverev, Lev"]
[Black "Tong, Hai Anh"]
[WhiteFideId "24250775"]
[BlackFideId "12412805"]
[WhiteElo "2109"]
[BlackElo "1467"]
[Result "1-0"]
[Round "06"]
[TimeControl "180+1"]
[Date "2021.08.03"]
[WhiteClock "0:00:46"]
[BlackClock "0:00:01"]

1. e4 {[%clk 0:03:00]}  c6 {[%clk 0:03:00]} 2. d4 {[%clk 0:03:00]}  d5 {[%clk 0:03:00]} 3. e5 {[%clk 0:03:00]}  Bf5 {[%clk 0:02:59]} 4. Nf3 {[%clk 0:03:01]}  e6 {[%clk 0:02:59]} 5. Be2 {[%clk 0:02:58]}  Nd7 {[%clk 0:02:56]} 6. O-O {[%clk 0:02:58]}  Ne7 {[%clk 0:02:55]} 7. Na3 {[%clk 0:02:50]}  h6 {[%clk 0:02:55]} 8. c4 {[%clk 0:02:46]}  Bh7 {[%clk 0:02:54]} 9. cxd5 {[%clk 0:02:45]}  cxd5 {[%clk 0:02:54]} 10. Bd2 {[%clk 0:02:34]}  Nf5 {[%clk 0:02:54]} 11. Bd3 {[%clk 0:02:30]}  Qb6 {[%clk 0:02:40]} 12. Qc2 {[%clk 0:02:19]}  Bxa3 {[%clk 0:02:22]} 13. bxa3 {[%clk 0:02:18]}  a6 {[%clk 0:02:13]} 14. Rfc1 {[%clk 0:02:11]}  O-O {[%clk 0:02:10]} 15. g4 {[%clk 0:02:10]}  Nxd4 {[%clk 0:02:03]} 16. Bxh7+ {[%clk 0:02:05]}  Kh8 {[%clk 0:02:02]} 17. Nxd4 {[%clk 0:02:05]}  Qxd4 {[%clk 0:02:02]} 18. Bd3 {[%clk 0:01:48]}  Qxg4+ {[%clk 0:01:55]} 19. Kh1 {[%clk 0:01:42]}  Qf3+ {[%clk 0:01:53]} 20. Kg1 {[%clk 0:01:42]}  Nxe5 {[%clk 0:01:53]} 21. Bf1 {[%clk 0:01:38]}  Qh5 {[%clk 0:00:34]} 22. Bg2 {[%clk 0:01:32]}  Rac8 {[%clk 0:00:21]} 23. Qd1 {[%clk 0:01:25]}  Qf5 {[%clk 0:00:17]} 24. Rxc8 {[%clk 0:01:24]}  Rxc8 {[%clk 0:00:15]} 25. Rc1 {[%clk 0:01:23]}  Rxc1 {[%clk 0:00:13]} 26. Bxc1 {[%clk 0:01:23]}  Nc4 {[%clk 0:00:09]} 27. Qb3 {[%clk 0:01:18]}  b5 {[%clk 0:00:09]} 28. Qc3 {[%clk 0:01:13]}  Qg4 {[%clk 0:00:09]} 29. Qd3 {[%clk 0:01:01]}  f6 {[%clk 0:00:03]} 30. Kf1 {[%clk 0:00:58]}  h5 {[%clk 0:00:02]} 31. h3 {[%clk 0:00:55]}  Qh4 {[%clk 0:00:02]} 32. Qg6 {[%clk 0:00:55]}  Qd4 {[%clk 0:00:02]} 33. Qe8+ {[%clk 0:00:54]}  Kh7 {[%clk 0:00:02]} 34. Qxh5+ {[%clk 0:00:55]}  Kg8 {[%clk 0:00:02]} 35. Qe8+ {[%clk 0:00:49]}  Kh7 {[%clk 0:00:02]} 36. Qxe6 {[%clk 0:00:50]}  Ne5 {[%clk 0:00:02]} 37. Qxd5 {[%clk 0:00:49]}  Qc3 {[%clk 0:00:02]} 38. Qd2 {[%clk 0:00:47]}  Qc4+ {[%clk 0:00:01]} 39. Kg1 {[%clk 0:00:47]}  Nd3 {[%clk 0:00:02]} 40. Bf1 {[%clk 0:00:46]}  Qxc1 {[%clk 0:00:01]} 41. Qxd3+ {[%clk 0:00:46]} 1-0


[Site "https://www.chess.com"]

[Event "Titled Tuesday Blitz August 3 2021"]
[White "Al-Tarboush, Ward"]
[Black "Madaminov, Mukhiddin"]
[WhiteFideId "7601450"]
[BlackFideId "14210703"]
[WhiteElo "2319"]
[BlackElo "1747"]
[Result "1-0"]
[Round "07"]
[TimeControl "180+1"]
[Date "2021.08.03"]
[WhiteClock "0:00:21"]
[BlackClock "0:01:12"]

1. d4 {[%clk 0:02:55]}  Nf6 {[%clk 0:03:00]} 2. Nf3 {[%clk 0:02:55]}  e6 {[%clk 0:03:00]} 3. Nc3 {[%clk 0:02:55]}  b6 {[%clk 0:03:00]} 4. e4 {[%clk 0:02:55]}  d5 {[%clk 0:02:58]} 5. exd5 {[%clk 0:02:54]}  Nxd5 {[%clk 0:02:58]} 6. Nxd5 {[%clk 0:02:52]}  Qxd5 {[%clk 0:02:59]} 7. Be3 {[%clk 0:02:52]}  Bb7 {[%clk 0:02:59]} 8. Bd3 {[%clk 0:02:52]}  Be7 {[%clk 0:02:58]} 9. O-O {[%clk 0:02:52]}  O-O {[%clk 0:02:58]} 10. c4 {[%clk 0:02:50]}  Qd8 {[%clk 0:02:58]} 11. Ne5 {[%clk 0:02:48]}  Nd7 {[%clk 0:02:57]} 12. Qh5 {[%clk 0:02:47]}  Nf6 {[%clk 0:02:55]} 13. Qh4 {[%clk 0:02:47]}  h6 {[%clk 0:02:45]} 14. Bxh6 {[%clk 0:02:08]}  gxh6 {[%clk 0:02:44]} 15. Qxh6 {[%clk 0:02:09]}  Be4 {[%clk 0:02:34]} 16. Qg5+ {[%clk 0:01:53]}  Kh7 {[%clk 0:02:26]} 17. Qh4+ {[%clk 0:01:48]}  Kg7 {[%clk 0:02:19]} 18. Bxe4 {[%clk 0:01:45]}  Rh8 {[%clk 0:02:13]} 19. Qg3+ {[%clk 0:01:24]}  Kf8 {[%clk 0:02:13]} 20. Bxa8 {[%clk 0:01:24]}  Qxa8 {[%clk 0:02:14]} 21. d5 {[%clk 0:01:21]}  exd5 {[%clk 0:02:11]} 22. cxd5 {[%clk 0:01:17]}  Qxd5 {[%clk 0:02:10]} 23. Rad1 {[%clk 0:01:16]}  Qa8 {[%clk 0:02:01]} 24. Qf4 {[%clk 0:00:54]}  Qe4 {[%clk 0:01:44]} 25. Nd7+ {[%clk 0:00:51]}  Kg7 {[%clk 0:01:43]} 26. Qxe4 {[%clk 0:00:41]}  Nxe4 {[%clk 0:01:44]} 27. Rfe1 {[%clk 0:00:42]}  f5 {[%clk 0:01:43]} 28. f3 {[%clk 0:00:41]}  Bb4 {[%clk 0:01:23]} 29. fxe4 {[%clk 0:00:36]}  Bxe1 {[%clk 0:01:23]} 30. Rxe1 {[%clk 0:00:37]}  Rd8 {[%clk 0:01:23]} 31. Ne5 {[%clk 0:00:33]}  Rd2 {[%clk 0:01:13]} 32. exf5 {[%clk 0:00:24]}  Rxb2 {[%clk 0:01:13]} 33. Ng4 {[%clk 0:00:25]}  Kf7 {[%clk 0:01:14]} 34. Rd1 {[%clk 0:00:24]}  Ke7 {[%clk 0:01:13]} 35. f6+ {[%clk 0:00:23]}  Ke6 {[%clk 0:01:13]} 36. Re1+ {[%clk 0:00:23]}  Kf7 {[%clk 0:01:11]} 37. Re7+ {[%clk 0:00:23]}  Kf8 {[%clk 0:01:12]} 38. Ne5 {[%clk 0:00:21]} 1-0


[Site "https://www.chess.com"]

[Event "Titled Tuesday Blitz August 3 2021"]
[White "Anuj Shrivatri"]
[Black "Ataman, Alper Efe"]
[WhiteFideId "35070924"]
[BlackFideId "6301606"]
[WhiteElo "2038"]
[BlackElo "2023"]
[Result "1-0"]
[Round "07"]
[TimeControl "180+1"]
[Date "2021.08.03"]
[WhiteClock "0:00:15"]
[BlackClock "0:00:40"]

1. c4 {[%clk 0:03:00]}  e6 {[%clk 0:02:59]} 2. g3 {[%clk 0:03:01]}  d5 {[%clk 0:02:59]} 3. Bg2 {[%clk 0:03:01]}  Nf6 {[%clk 0:03:00]} 4. Nf3 {[%clk 0:03:01]}  Be7 {[%clk 0:03:00]} 5. O-O {[%clk 0:03:00]}  O-O {[%clk 0:03:00]} 6. d4 {[%clk 0:03:01]}  dxc4 {[%clk 0:02:53]} 7. Qc2 {[%clk 0:03:00]}  a6 {[%clk 0:02:53]} 8. a4 {[%clk 0:03:00]}  Bd7 {[%clk 0:02:51]} 9. Rd1 {[%clk 0:03:00]}  Bc6 {[%clk 0:02:49]} 10. Bg5 {[%clk 0:03:00]}  Nbd7 {[%clk 0:02:44]} 11. Nbd2 {[%clk 0:02:59]}  b5 {[%clk 0:02:38]} 12. b3 {[%clk 0:02:59]}  Nd5 {[%clk 0:02:04]} 13. Bxe7 {[%clk 0:02:57]}  Qxe7 {[%clk 0:02:02]} 14. bxc4 {[%clk 0:02:55]}  Nb4 {[%clk 0:02:02]} 15. Qc3 {[%clk 0:02:54]}  bxa4 {[%clk 0:01:50]} 16. e4 {[%clk 0:02:48]}  e5 {[%clk 0:01:47]} 17. d5 {[%clk 0:02:43]}  Bb7 {[%clk 0:01:45]} 18. Rxa4 {[%clk 0:02:43]}  a5 {[%clk 0:01:46]} 19. Nb3 {[%clk 0:02:43]}  Nc5 {[%clk 0:01:44]} 20. Nxc5 {[%clk 0:02:43]}  Qxc5 {[%clk 0:01:45]} 21. Nxe5 {[%clk 0:02:43]}  Rfd8 {[%clk 0:01:39]} 22. Qd4 {[%clk 0:02:36]}  Na6 {[%clk 0:01:33]} 23. Ra2 {[%clk 0:01:59]}  Qxd4 {[%clk 0:01:29]} 24. Rxd4 {[%clk 0:01:59]}  Nc5 {[%clk 0:01:29]} 25. Rdd2 {[%clk 0:01:40]}  f6 {[%clk 0:01:26]} 26. Nd3 {[%clk 0:01:40]}  Nb3 {[%clk 0:01:23]} 27. Rdb2 {[%clk 0:01:38]}  a4 {[%clk 0:01:24]} 28. Bf3 {[%clk 0:01:31]}  Bc8 {[%clk 0:01:09]} 29. Bd1 {[%clk 0:01:28]}  Nd4 {[%clk 0:01:07]} 30. Rxa4 {[%clk 0:01:19]}  Rxa4 {[%clk 0:01:07]} 31. Bxa4 {[%clk 0:01:19]}  Bh3 {[%clk 0:01:08]} 32. f4 {[%clk 0:01:10]}  Ra8 {[%clk 0:01:07]} 33. Ra2 {[%clk 0:00:55]}  Rb8 {[%clk 0:01:03]} 34. Bb5 {[%clk 0:00:53]}  Nxb5 {[%clk 0:01:03]} 35. Rb2 {[%clk 0:00:52]}  Bd7 {[%clk 0:01:01]} 36. Nc5 {[%clk 0:00:51]}  Be8 {[%clk 0:01:01]} 37. Ne6 {[%clk 0:00:34]}  c6 {[%clk 0:01:01]} 38. d6 {[%clk 0:00:27]}  Ra8 {[%clk 0:00:58]} 39. cxb5 {[%clk 0:00:26]}  cxb5 {[%clk 0:00:59]} 40. Rd2 {[%clk 0:00:19]}  Kf7 {[%clk 0:00:54]} 41. Nd4 {[%clk 0:00:18]}  Bd7 {[%clk 0:00:54]} 42. Rc2 {[%clk 0:00:16]}  Ra7 {[%clk 0:00:48]} 43. e5 {[%clk 0:00:16]}  fxe5 {[%clk 0:00:47]} 44. fxe5 {[%clk 0:00:17]}  Be6 {[%clk 0:00:44]} 45. Rf2+ {[%clk 0:00:16]}  Kg6 {[%clk 0:00:41]} 46. Nxe6 {[%clk 0:00:16]}  b4 {[%clk 0:00:42]} 47. d7 {[%clk 0:00:15]}  Ra1+ {[%clk 0:00:40]} 48. Rf1 {[%clk 0:00:14]}  Ra8 {[%clk 0:00:39]} 49. d8=Q {[%clk 0:00:14]}  Rxd8 {[%clk 0:00:40]} 50. Nxd8 {[%clk 0:00:15]} 1-0


[Site "https://www.chess.com"]

[Event "Titled Tuesday Blitz August 3 2021"]
[White "Boraso, Alessio"]
[Black "Rodrigue-Lemieux, Shawn"]
[WhiteFideId "848077"]
[BlackFideId "2620049"]
[WhiteElo "2277"]
[BlackElo "1763"]
[Result "1-0"]
[Round "07"]
[TimeControl "180+1"]
[Date "2021.08.03"]
[WhiteClock "0:00:26"]
[BlackClock "0:00:01"]

1. c4 {[%clk 0:03:00]}  Nf6 {[%clk 0:02:59]} 2. g3 {[%clk 0:02:59]}  e6 {[%clk 0:02:59]} 3. Bg2 {[%clk 0:03:00]}  d5 {[%clk 0:02:59]} 4. Nf3 {[%clk 0:03:00]}  Be7 {[%clk 0:03:00]} 5. O-O {[%clk 0:02:59]}  O-O {[%clk 0:03:00]} 6. b3 {[%clk 0:02:59]}  b6 {[%clk 0:03:00]} 7. Bb2 {[%clk 0:02:57]}  Bb7 {[%clk 0:03:01]} 8. e3 {[%clk 0:02:56]}  Nbd7 {[%clk 0:02:59]} 9. Nc3 {[%clk 0:02:55]}  c5 {[%clk 0:02:59]} 10. cxd5 {[%clk 0:02:52]}  Nxd5 {[%clk 0:02:56]} 11. Nxd5 {[%clk 0:02:52]}  Bxd5 {[%clk 0:02:57]} 12. d4 {[%clk 0:02:52]}  Qc8 {[%clk 0:02:55]} 13. Rc1 {[%clk 0:02:46]}  Qb7 {[%clk 0:02:54]} 14. Ne1 {[%clk 0:02:46]}  Bxg2 {[%clk 0:02:53]} 15. Nxg2 {[%clk 0:02:47]}  Rfd8 {[%clk 0:02:53]} 16. Qe2 {[%clk 0:02:43]}  Rac8 {[%clk 0:02:48]} 17. Nf4 {[%clk 0:02:42]}  cxd4 {[%clk 0:02:45]} 18. exd4 {[%clk 0:02:34]}  Nf6 {[%clk 0:02:44]} 19. Rxc8 {[%clk 0:02:24]}  Rxc8 {[%clk 0:02:45]} 20. Rc1 {[%clk 0:02:22]}  Rxc1+ {[%clk 0:02:44]} 21. Bxc1 {[%clk 0:02:23]}  Nd5 {[%clk 0:02:44]} 22. Nxd5 {[%clk 0:02:08]}  Qxd5 {[%clk 0:02:45]} 23. Qc4 {[%clk 0:02:08]}  f5 {[%clk 0:02:39]} 24. Qxd5 {[%clk 0:01:57]}  exd5 {[%clk 0:02:39]} 25. Bf4 {[%clk 0:01:57]}  Kf7 {[%clk 0:02:39]} 26. Be5 {[%clk 0:01:53]}  g6 {[%clk 0:02:29]} 27. Kf1 {[%clk 0:01:52]}  Ke6 {[%clk 0:02:27]} 28. Ke2 {[%clk 0:01:52]}  b5 {[%clk 0:02:19]} 29. Kd3 {[%clk 0:01:43]}  Bb4 {[%clk 0:02:15]} 30. f3 {[%clk 0:01:42]}  a6 {[%clk 0:02:14]} 31. h3 {[%clk 0:01:40]}  h5 {[%clk 0:02:10]} 32. Ke2 {[%clk 0:01:38]}  Bc3 {[%clk 0:02:06]} 33. Kf2 {[%clk 0:01:29]}  Kd7 {[%clk 0:01:52]} 34. Ke3 {[%clk 0:01:26]}  Bb4 {[%clk 0:01:46]} 35. Kd3 {[%clk 0:01:17]}  Be1 {[%clk 0:01:45]} 36. Ke3 {[%clk 0:01:16]}  Ke6 {[%clk 0:01:44]} 37. Ke2 {[%clk 0:01:15]}  Ba5 {[%clk 0:01:43]} 38. Kd3 {[%clk 0:01:16]}  Bd8 {[%clk 0:01:42]} 39. Ke3 {[%clk 0:01:15]}  Bg5+ {[%clk 0:01:42]} 40. Ke2 {[%clk 0:01:15]}  Kd7 {[%clk 0:01:38]} 41. Kd3 {[%clk 0:01:13]}  Kc6 {[%clk 0:01:38]} 42. Kc3 {[%clk 0:01:14]}  Bh6 {[%clk 0:01:34]} 43. Kd3 {[%clk 0:01:11]}  Kd7 {[%clk 0:01:32]} 44. Ke2 {[%clk 0:01:10]}  Kc8 {[%clk 0:01:32]} 45. Kd3 {[%clk 0:01:10]}  Kb7 {[%clk 0:01:33]} 46. Kc3 {[%clk 0:01:11]}  Ka7 {[%clk 0:01:32]} 47. Kd3 {[%clk 0:01:11]}  Kb6 {[%clk 0:01:32]} 48. Kc3 {[%clk 0:01:12]}  Bf8 {[%clk 0:01:30]} 49. Kd3 {[%clk 0:01:12]}  Ba3 {[%clk 0:01:30]} 50. Ke3 {[%clk 0:01:12]}  Kc6 {[%clk 0:01:24]} 51. Kd3 {[%clk 0:01:10]}  Kb7 {[%clk 0:01:20]} 52. Kc3 {[%clk 0:01:10]}  Bf8 {[%clk 0:01:16]} 53. Kd3 {[%clk 0:01:09]}  Kc8 {[%clk 0:01:17]} 54. Ke3 {[%clk 0:01:07]}  Kd8 {[%clk 0:01:18]} 55. Bf6+ {[%clk 0:01:03]}  Kd7 {[%clk 0:01:13]} 56. Kf4 {[%clk 0:01:00]}  Ke6 {[%clk 0:01:12]} 57. Kg5 {[%clk 0:00:55]}  Kf7 {[%clk 0:01:06]} 58. g4 {[%clk 0:00:44]}  fxg4 {[%clk 0:00:38]} 59. fxg4 {[%clk 0:00:43]}  Bb4 {[%clk 0:00:11]} 60. Be5 {[%clk 0:00:37]}  Bd2+ {[%clk 0:00:03]} 61. Bf4 {[%clk 0:00:36]}  Bxf4+ {[%clk 0:00:02]} 62. Kxf4 {[%clk 0:00:37]}  Kf6 {[%clk 0:00:03]} 63. gxh5 {[%clk 0:00:30]}  gxh5 {[%clk 0:00:04]} 64. b4 {[%clk 0:00:30]}  Kg6 {[%clk 0:00:02]} 65. h4 {[%clk 0:00:27]}  Kf6 {[%clk 0:00:01]} 66. a3 {[%clk 0:00:26]}  Ke6 {[%clk 0:00:01]} 67. Kg5 {[%clk 0:00:26]} 1-0


[Site "https://www.chess.com"]

[Event "Titled Tuesday Blitz August 3 2021"]
[White "Bortnyk, Olexandr"]
[Black "Jacobson, Brandon"]
[WhiteFideId "14120828"]
[BlackFideId "30901561"]
[WhiteElo "2723"]
[BlackElo "2362"]
[Result "1-0"]
[Round "07"]
[TimeControl "180+1"]
[Date "2021.08.03"]
[WhiteClock "0:00:48"]
[BlackClock "0:00:05"]

1. e4 {[%clk 0:03:00]}  e5 {[%clk 0:03:00]} 2. Bc4 {[%clk 0:02:59]}  Nf6 {[%clk 0:03:00]} 3. d3 {[%clk 0:02:59]}  Nc6 {[%clk 0:02:59]} 4. Nc3 {[%clk 0:02:58]}  Na5 {[%clk 0:02:51]} 5. Bg5 {[%clk 0:02:58]}  c6 {[%clk 0:02:50]} 6. f4 {[%clk 0:02:51]}  Nxc4 {[%clk 0:02:36]} 7. dxc4 {[%clk 0:02:52]}  Qa5 {[%clk 0:02:28]} 8. Qd3 {[%clk 0:02:05]}  Bb4 {[%clk 0:02:01]} 9. Ne2 {[%clk 0:02:00]}  exf4 {[%clk 0:02:00]} 10. Bxf6 {[%clk 0:02:00]}  gxf6 {[%clk 0:02:00]} 11. O-O {[%clk 0:01:59]}  Qe5 {[%clk 0:01:56]} 12. Rxf4 {[%clk 0:01:54]}  Rg8 {[%clk 0:01:37]} 13. Raf1 {[%clk 0:01:53]}  Rg6 {[%clk 0:01:38]} 14. Rf5 {[%clk 0:01:42]}  Qe7 {[%clk 0:01:37]} 15. Nf4 {[%clk 0:01:31]}  Rg5 {[%clk 0:01:17]} 16. Nfd5 {[%clk 0:01:21]}  cxd5 {[%clk 0:00:57]} 17. Nxd5 {[%clk 0:01:22]}  Rxf5 {[%clk 0:00:53]} 18. Rxf5 {[%clk 0:01:20]}  Bc5+ {[%clk 0:00:43]} 19. Kh1 {[%clk 0:01:19]}  Qd6 {[%clk 0:00:37]} 20. Rxf6 {[%clk 0:01:07]}  Qe5 {[%clk 0:00:35]} 21. Rf5 {[%clk 0:01:07]}  Qxb2 {[%clk 0:00:31]} 22. Nc7+ {[%clk 0:01:03]}  Ke7 {[%clk 0:00:26]} 23. Nxa8 {[%clk 0:01:00]}  d6 {[%clk 0:00:22]} 24. Rf1 {[%clk 0:00:58]}  Qd4 {[%clk 0:00:04]} 25. Qxd4 {[%clk 0:00:57]}  Bxd4 {[%clk 0:00:05]} 26. Nc7 {[%clk 0:00:58]}  Be5 {[%clk 0:00:02]} 27. Nd5+ {[%clk 0:00:54]}  Kf8 {[%clk 0:00:02]} 28. g3 {[%clk 0:00:52]}  b6 {[%clk 0:00:03]} 29. Kg2 {[%clk 0:00:52]}  Ba6 {[%clk 0:00:04]} 30. Ne3 {[%clk 0:00:48]}  Bd4 {[%clk 0:00:05]} 31. Kf3 {[%clk 0:00:48]}  Bb7 {[%clk 0:00:05]} 32. Rd1 {[%clk 0:00:47]}  Bc5 {[%clk 0:00:05]} 33. Nf5 {[%clk 0:00:48]} 1-0


[Site "https://www.chess.com"]

[Event "Titled Tuesday Blitz August 3 2021"]
[White "Cunjalo, Faris"]
[Black "Iskusnyh, Sergei"]
[WhiteFideId "14410710"]
[BlackFideId "4120027"]
[WhiteElo "2234"]
[BlackElo "2492"]
[Result "1-0"]
[Round "07"]
[TimeControl "180+1"]
[Date "2021.08.03"]
[WhiteClock "0:00:04"]
[BlackClock "0:00:01"]

1. d4 {[%clk 0:03:00]}  d5 {[%clk 0:02:59]} 2. c4 {[%clk 0:03:01]}  e6 {[%clk 0:02:58]} 3. Nf3 {[%clk 0:03:02]}  dxc4 {[%clk 0:02:55]} 4. e3 {[%clk 0:03:02]}  Nf6 {[%clk 0:02:54]} 5. Bxc4 {[%clk 0:03:02]}  a6 {[%clk 0:02:54]} 6. Nc3 {[%clk 0:03:03]}  b5 {[%clk 0:02:52]} 7. Be2 {[%clk 0:03:03]}  Bb7 {[%clk 0:02:51]} 8. O-O {[%clk 0:03:04]}  Nbd7 {[%clk 0:02:50]} 9. a4 {[%clk 0:02:50]}  b4 {[%clk 0:02:49]} 10. Nb1 {[%clk 0:02:51]}  c5 {[%clk 0:02:46]} 11. Nbd2 {[%clk 0:02:51]}  Be7 {[%clk 0:02:41]} 12. Nc4 {[%clk 0:02:33]}  O-O {[%clk 0:02:41]} 13. Bd2 {[%clk 0:02:33]}  Ne4 {[%clk 0:02:03]} 14. Rc1 {[%clk 0:02:33]}  a5 {[%clk 0:01:57]} 15. b3 {[%clk 0:02:13]}  Qb8 {[%clk 0:01:52]} 16. Qc2 {[%clk 0:02:12]}  Rc8 {[%clk 0:01:48]} 17. Rfd1 {[%clk 0:02:12]}  Nxd2 {[%clk 0:01:46]} 18. Qxd2 {[%clk 0:02:11]}  cxd4 {[%clk 0:01:35]} 19. Nxd4 {[%clk 0:02:12]}  Bd5 {[%clk 0:01:29]} 20. Bf3 {[%clk 0:02:06]}  Nc5 {[%clk 0:01:21]} 21. Bxd5 {[%clk 0:02:06]}  exd5 {[%clk 0:01:21]} 22. Nf5 {[%clk 0:01:51]}  Bf8 {[%clk 0:01:11]} 23. Qxd5 {[%clk 0:01:49]}  Nxb3 {[%clk 0:01:10]} 24. Ne5 {[%clk 0:01:33]}  Rxc1 {[%clk 0:00:50]} 25. Rxc1 {[%clk 0:01:32]}  Nxc1 {[%clk 0:00:50]} 26. Nxf7 {[%clk 0:01:28]}  Bc5 {[%clk 0:00:14]} 27. N7d6+ {[%clk 0:00:31]}  Kh8 {[%clk 0:00:13]} 28. Qxc5 {[%clk 0:00:30]}  Ne2+ {[%clk 0:00:12]} 29. Kf1 {[%clk 0:00:30]}  Nc3 {[%clk 0:00:12]} 30. Qc4 {[%clk 0:00:30]}  h6 {[%clk 0:00:10]} 31. Nf7+ {[%clk 0:00:09]}  Kh7 {[%clk 0:00:10]} 32. Qd3 {[%clk 0:00:10]}  Kg8 {[%clk 0:00:10]} 33. N7d6 {[%clk 0:00:06]}  Qd8 {[%clk 0:00:07]} 34. g4 {[%clk 0:00:04]}  Qf6 {[%clk 0:00:06]} 35. Qc4+ {[%clk 0:00:04]}  Kh7 {[%clk 0:00:06]} 36. h4 {[%clk 0:00:03]}  Rd8 {[%clk 0:00:06]} 37. Qd3 {[%clk 0:00:01]}  b3 {[%clk 0:00:04]} 38. g5 {[%clk 0:00:01]}  hxg5 {[%clk 0:00:04]} 39. hxg5 {[%clk 0:00:02]}  Qg6 {[%clk 0:00:04]} 40. Qxc3 {[%clk 0:00:02]}  Rxd6 {[%clk 0:00:05]} 41. Nxd6 {[%clk 0:00:02]}  Qxd6 {[%clk 0:00:05]} 42. Qxb3 {[%clk 0:00:03]}  Qa6+ {[%clk 0:00:05]} 43. Kg2 {[%clk 0:00:02]}  Qc6+ {[%clk 0:00:04]} 44. Kg3 {[%clk 0:00:02]}  Qd6+ {[%clk 0:00:04]} 45. f4 {[%clk 0:00:03]}  Qd2 {[%clk 0:00:04]} 46. Kf3 {[%clk 0:00:03]}  Qe1 {[%clk 0:00:04]} 47. Qd3+ {[%clk 0:00:03]}  Kg8 {[%clk 0:00:03]} 48. Qd5+ {[%clk 0:00:04]}  Kh7 {[%clk 0:00:03]} 49. Qf5+ {[%clk 0:00:04]}  Kg8 {[%clk 0:00:03]} 50. Qc8+ {[%clk 0:00:04]}  Kh7 {[%clk 0:00:03]} 51. Qc2+ {[%clk 0:00:05]}  Kg8 {[%clk 0:00:03]} 52. g6 {[%clk 0:00:04]}  Qf1+ {[%clk 0:00:03]} 53. Ke4 {[%clk 0:00:04]}  Qh1+ {[%clk 0:00:02]} 54. Ke5 {[%clk 0:00:04]}  Qh5+ {[%clk 0:00:02]} 55. Ke6 {[%clk 0:00:03]}  Qg4+ {[%clk 0:00:01]} 56. f5 {[%clk 0:00:04]} 1-0


[Site "https://www.chess.com"]